fUST/lending_fUST_20260505
["ID","MTS","AMOUNT","RATE_DAILY","PERIOD"]
[421607594,1777948246000,-424.66513325,0.00012602,2]
[421607596,1777948246000,-1872.72,0.00012602,2]
[421607604,1777948246000,-500.0,0.00012602,2]
[421607602,1777948246000,-500.0,0.00012602,2]
[421607598,1777948246000,-500.0,0.00012602,2]
[421607603,1777948246000,-500.0,0.00012602,2]
[421607601,1777948246000,-500.0,0.00012602,2]
[421607595,1777948246000,-500.0,0.00012602,2]
[421607628,1777948246000,-500.0,0.00012602,2]
[421607608,1777948246000,-2878.15,0.00012602,2]
[421607626,1777948246000,-500.0,0.00012602,2]
[421607655,1777948246000,-500.0,0.00012602,2]
[421607622,1777948246000,-62166.02,0.00012602,2]
[421607661,1777948246000,-648.46985174,0.00012602,2]
[421607659,1777948246000,-500.0,0.00012602,2]
[421607660,1777948246000,-500.0,0.00012602,2]
[421607658,1777948246000,-2394.63,0.00012602,2]
[421607624,1777948246000,-3880.53,0.00012602,2]
[421607657,1777948246000,-1243.26,0.00012602,2]
[421607652,1777948246000,-6332.39815017,0.00012602,2]
[421607649,1777948246000,-500.0,0.00012602,2]
[421607647,1777948246000,-5705.12,0.00012602,2]
[421607642,1777948246000,-774.6,0.00012602,2]
[421607650,1777948246000,-500.0,0.00012602,2]
[421607645,1777948246000,-500.0,0.00012602,2]
[421607651,1777948246000,-4480.47976497,0.00012602,2]
[421607644,1777948246000,-684.05,0.00012602,2]
[421607654,1777948246000,-500.0,0.00012602,2]
[421607656,1777948246000,-806.68,0.00012602,2]
[421607648,1777948246000,-926.33,0.00012602,2]
[421607646,1777948246000,-500.0,0.00012602,2]
[421607627,1777948246000,-11490.16,0.00012602,2]
[421607629,1777948246000,-12484.81,0.00012602,2]
[421607631,1777948246000,-729.42,0.00012602,2]
[421607634,1777948246000,-500.0,0.00012602,2]
[421607633,1777948246000,-500.0,0.00012602,2]
[421607635,1777948246000,-7654.26951133,0.00012602,2]
[421607625,1777948246000,-500.0,0.00012602,2]
[421607636,1777948246000,-546.82048867,0.00012602,2]
[421607640,1777948246000,-4048.69,0.00012602,2]
[421607641,1777948246000,-500.0,0.00012602,2]
[421607638,1777948246000,-2742.76,0.00012602,2]
[421607643,1777948246000,-2981.99,0.00012602,2]
[421607653,1777948246000,-1726.82208486,0.00012602,2]
[421607632,1777948246000,-500.0,0.00012602,2]
[421607680,1777948247000,-830.5,0.00012602,2]
[421607679,1777948247000,-2120.49,0.00012602,2]
[421607681,1777948247000,-490.21618444,0.00012602,2]
[421607685,1777948247000,-557.99,0.00012602,2]
[421607684,1777948247000,-930.46,0.00012602,2]
[421607683,1777948247000,-10018.84,0.00012602,2]
[421607675,1777948247000,-500.0,0.00012602,2]
[421607686,1777948247000,-3884.22,0.00012602,2]
[421607674,1777948247000,-500.0,0.00012602,2]
[421607678,1777948247000,-3472.22,0.00012602,2]
[421607677,1777948247000,-600.74,0.00012602,2]
[421607669,1777948247000,-3124.55,0.00012602,2]
[421607672,1777948247000,-1844.98595701,0.00012602,2]
[421607673,1777948247000,-569.24,0.00012602,2]
[421607671,1777948247000,-5000.0,0.00012205,2]
[421607670,1777948247000,-5030.68404299,0.00012602,2]
[421607666,1777948247000,-571.30861276,0.00012602,2]
[421607668,1777948247000,-1090.9,0.00012602,2]
[421607665,1777948247000,-6184.04014826,0.00012602,2]
[421607667,1777948247000,-94.94138724,0.00012602,2]
[421607664,1777948247000,-285.0,0.00012574,2]
[421607662,1777948247000,-2685.40494975,0.00012328,2]
[421607687,1777948247000,-1645.4,0.00012602,2]
[421607676,1777948247000,-736.86,0.00012602,2]
[421607682,1777948247000,-7225.16,0.00012602,2]
[421607663,1777948247000,-2078.21505025,0.00012328,2]
[421607699,1777948247000,-178.93,0.00012607,2]
[421607714,1777948247000,-500.0,0.00012876,2]
[421607710,1777948247000,-500.0,0.00012876,2]
[421607711,1777948247000,-500.0,0.00012876,2]
[421607712,1777948247000,-500.0,0.00012876,2]
[421607713,1777948247000,-500.0,0.00012876,2]
[421607703,1777948247000,-500.0,0.00012873,2]
[421607709,1777948247000,-999.42,0.00012876,2]
[421607705,1777948247000,-500.0,0.00012873,2]
[421607708,1777948247000,-3365.976,0.00012876,2]
[421607706,1777948247000,-334.12224052,0.00012873,2]
[421607707,1777948247000,-500.0,0.00012873,2]
[421607704,1777948247000,-500.0,0.00012873,2]
[421607689,1777948247000,-2518.01,0.00012602,2]
[421607694,1777948247000,-500.0,0.00012602,2]
[421607702,1777948247000,-2781.39044349,0.00012776,2]
[421607700,1777948247000,-187.97,0.0001262,2]
[421607701,1777948247000,-183.9,0.0001262,2]
[421607698,1777948247000,-4763.62,0.00012602,2]
[421607696,1777948247000,-411.73374108,0.00012602,2]
[421607688,1777948247000,-500.0,0.00012602,2]
[421607691,1777948247000,-500.0,0.00012602,2]
[421607697,1777948247000,-1592.5,0.00012602,2]
[421607693,1777948247000,-500.0,0.00012602,2]
[421607695,1777948247000,-500.0,0.00012602,2]
[421607692,1777948247000,-500.0,0.00012602,2]
[421607690,1777948247000,-500.0,0.00012602,2]
[421607727,1777948248000,-500.0,0.00012876,2]
[421607724,1777948248000,-500.0,0.00012876,2]
[421607726,1777948248000,-500.0,0.00012876,2]
[421607725,1777948248000,-500.0,0.00012876,2]
[421607728,1777948248000,-1796.0,0.00012876,2]
[421607722,1777948248000,-500.0,0.00012876,2]
[421607717,1777948248000,-500.0,0.00012876,2]
[421607721,1777948248000,-500.0,0.00012876,2]
[421607720,1777948248000,-500.0,0.00012876,2]
[421607719,1777948248000,-1711.75,0.00012876,2]
[421607718,1777948248000,-500.0,0.00012876,2]
[421607729,1777948248000,-351.73206354,0.00012876,2]
[421607716,1777948248000,-664.84,0.00012876,2]
[421607715,1777948248000,-500.0,0.00012876,2]
[421607723,1777948248000,-500.0,0.00012876,2]
[421607730,1777948248000,-500.0,0.00012876,2]
[421607734,1777948248000,-614.47,0.00012876,2]
[421607741,1777948248000,-472.52545829,0.00012876,2]
[421607745,1777948248000,-187.32692593,0.00012876,2]
[421607743,1777948248000,-500.0,0.00012876,2]
[421607746,1777948248000,-500.0,0.00012876,2]
[421607747,1777948248000,-149.07307457,0.00012876,2]
[421607744,1777948248000,-348.49307407,0.00012876,2]
[421607731,1777948248000,-500.0,0.00012876,2]
[421607738,1777948248000,-223.31705938,0.00012876,2]
[421607742,1777948248000,-842.79,0.00012876,2]
[421607737,1777948248000,-500.0,0.00012876,2]
[421607739,1777948248000,-456.43294062,0.00012876,2]
[421607736,1777948248000,-443.19854645,0.00012876,2]
[421607735,1777948248000,-500.0,0.00012876,2]
[421607733,1777948248000,-1548.16,0.00012876,2]
[421607732,1777948248000,-500.0,0.00012876,2]
[421607740,1777948248000,-27.47454171,0.00012876,2]
[421607748,1777948260000,2458.70442753,7.6e-05,2]
[421607750,1777948360000,3610.83550244,0.0002,120]
[421607751,1777948508000,180.0,0.0002034,120]
[421607752,1777948532000,235.0,0.00018375,120]
[421607753,1777948533000,235.0,0.00019294,120]
[421607754,1777948808000,182.0,0.00020356,120]
[421607785,1777949386000,1000.0,0.00020799,120]
[421607786,1777949429000,5336.49709877,0.00020799,120]
[421607826,1777949432000,-25.05664379,0.00011999,2]
[421607804,1777949432000,-1843.9927224,0.00010082,2]
[421607803,1777949432000,-2305.46063746,0.00010082,2]
[421607805,1777949432000,-670.94,0.00010082,2]
[421607806,1777949432000,-179.60664014,0.00010082,2]
[421607807,1777949432000,-561.0,0.00010082,2]
[421607809,1777949432000,-5000.0,0.00010184,2]
[421607808,1777949432000,-1200.0,0.00010183,2]
[421607812,1777949432000,-3304.73122274,0.00010287,2]
[421607810,1777949432000,-300.0,0.00010286,2]
[421607813,1777949432000,-309.42400436,0.0001071,2]
[421607814,1777949432000,-420.0,0.00011311,2]
[421607815,1777949432000,-201.4347134,0.000119,2]
[421607816,1777949432000,-191.91107554,0.000119,2]
[421607819,1777949432000,-284.16129847,0.000119,2]
[421607818,1777949432000,-275.13030754,0.000119,2]
[421607820,1777949432000,-500.0,0.00011999,2]
[421607821,1777949432000,-286.66022591,0.00011999,2]
[421607823,1777949432000,-351.39863777,0.00011999,2]
[421607822,1777949432000,-500.0,0.00011999,2]
[421607811,1777949432000,-1695.26877726,0.00010287,2]
[421607825,1777949432000,-500.0,0.00011999,2]
[421607824,1777949432000,-148.60136223,0.00011999,2]
[421607828,1777949432000,-26.05664379,0.00011999,2]
[421607827,1777949432000,-474.94335621,0.00011999,2]
[421607817,1777949432000,-260.28370223,0.000119,2]
[421607843,1777949440000,-473.94335621,0.00011999,2]
[421607846,1777949440000,-67.06319247,0.00011999,2]
[421607849,1777949440000,-432.93680753,0.00011999,2]
[421607850,1777949440000,-500.0,0.00011999,2]
[421607844,1777949440000,-502.4345884,0.00011999,2]
[421607887,1777949441000,-500.0,0.00011999,2]
[421607880,1777949441000,-500.0,0.00011999,2]
[421607888,1777949441000,-500.0,0.00011999,2]
[421607884,1777949441000,-500.0,0.00011999,2]
[421607878,1777949441000,-500.0,0.00011999,2]
[421607885,1777949441000,-500.0,0.00011999,2]
[421607876,1777949441000,-500.0,0.00011999,2]
[421607886,1777949441000,-500.0,0.00011999,2]
[421607883,1777949441000,-500.0,0.00011999,2]
[421607873,1777949441000,-500.0,0.00011999,2]
[421607872,1777949441000,-500.0,0.00011999,2]
[421607871,1777949441000,-500.0,0.00011999,2]
[421607869,1777949441000,-500.0,0.00011999,2]
[421607868,1777949441000,-576.83151597,0.00011999,2]
[421607867,1777949441000,-500.0,0.00011999,2]
[421607866,1777949441000,-406.29392491,0.00011999,2]
[421607864,1777949441000,-500.0,0.00011999,2]
[421607865,1777949441000,-93.70607509,0.00011999,2]
[421607863,1777949441000,-500.0,0.00011999,2]
[421607861,1777949441000,-500.0,0.00011999,2]
[421607862,1777949441000,-500.0,0.00011999,2]
[421607860,1777949441000,-319.35261076,0.00011999,2]
[421607875,1777949441000,-212.8877639,0.00011999,2]
[421607859,1777949441000,-180.64738924,0.00011999,2]
[421607857,1777949441000,-304.76309624,0.00011999,2]
[421607858,1777949441000,-500.0,0.00011999,2]
[421607851,1777949441000,-195.23690376,0.00011999,2]
[421607870,1777949441000,-500.0,0.00011999,2]
[421607879,1777949441000,-500.0,0.00011999,2]
[421607913,1777949441000,-500.0,0.00011999,2]
[421607881,1777949441000,-500.0,0.00011999,2]
[421607917,1777949441000,-488.17214157,0.00012,2]
[421607914,1777949441000,-39284.99368279,0.00012,2]
[421607915,1777949441000,-16120.28039086,0.00012,2]
[421607916,1777949441000,-250951.47819691,0.00012,2]
[421607906,1777949441000,-500.0,0.00011999,2]
[421607907,1777949441000,-500.0,0.00011999,2]
[421607909,1777949441000,-500.0,0.00011999,2]
[421607905,1777949441000,-500.0,0.00011999,2]
[421607904,1777949441000,-500.0,0.00011999,2]
[421607908,1777949441000,-500.0,0.00011999,2]
[421607911,1777949441000,-500.0,0.00011999,2]
[421607903,1777949441000,-500.0,0.00011999,2]
[421607901,1777949441000,-179.92223457,0.00011999,2]
[421607910,1777949441000,-251.70421188,0.00011999,2]
[421607902,1777949441000,-500.0,0.00011999,2]
[421607889,1777949441000,-500.0,0.00011999,2]
[421607891,1777949441000,-500.0,0.00011999,2]
[421607912,1777949441000,-500.0,0.00011999,2]
[421607894,1777949441000,-500.0,0.00011999,2]
[421607892,1777949441000,-500.0,0.00011999,2]
[421607890,1777949441000,-500.0,0.00011999,2]
[421607893,1777949441000,-500.0,0.00011999,2]
[421607900,1777949441000,-500.0,0.00011999,2]
[421607896,1777949441000,-500.0,0.00011999,2]
[421607897,1777949441000,-500.0,0.00011999,2]
[421607895,1777949441000,-500.0,0.00011999,2]
[421607898,1777949441000,-500.0,0.00011999,2]
[421607899,1777949441000,-500.0,0.00011999,2]
[421607882,1777949441000,-500.0,0.00011999,2]
[421607939,1777949443000,-382.91828592,0.00012,2]
[421607941,1777949443000,-407.64,0.00012,2]
[421607940,1777949443000,-1588.66910052,0.00012,2]
[421607937,1777949443000,-11031.30708005,0.00012,2]
[421607936,1777949443000,-1602.12497011,0.00011879,2]
[421607938,1777949443000,-2700.0000006,0.00012,2]
[421607952,1777949446000,-2290.48434591,0.000119,2]
[421607956,1777949722000,500.0,0.0002082,120]
[421607957,1777949870000,151.0,0.00020822,120]
[421607958,1777949877000,151.0,0.00020822,120]
[421607959,1777949884000,151.0,0.00020822,120]
[421607960,1777949891000,151.0,0.00020822,120]
[421607961,1777949898000,151.0,0.00020822,120]
[421607962,1777949906000,151.0,0.00020822,120]
[421607963,1777949914000,151.0,0.00020822,120]
[421607964,1777949951000,151.0,0.00020822,120]
[421607965,1777949964000,282.46,0.00020822,120]
[421608005,1777950006000,180.0,0.00020117,120]
[421608247,1777950641000,-389.9284953,0.00010438,2]
[421608282,1777950644000,-500.0,0.00011351,2]
[421608279,1777950644000,-500.0,0.00011351,2]
[421608277,1777950644000,-500.0,0.00011351,2]
[421608275,1777950644000,-500.0,0.00011351,2]
[421608283,1777950644000,-500.0,0.00011351,2]
[421608276,1777950644000,-500.0,0.00011351,2]
[421608280,1777950644000,-500.0,0.00011351,2]
[421608281,1777950644000,-500.0,0.00011351,2]
[421608274,1777950644000,-500.0,0.00011351,2]
[421608285,1777950644000,-500.0,0.00011351,2]
[421608278,1777950644000,-500.0,0.00011351,2]
[421608272,1777950644000,-500.0,0.00011351,2]
[421608265,1777950644000,-456.2076372,0.00010905,2]
[421608270,1777950644000,-500.0,0.00011351,2]
[421608271,1777950644000,-500.0,0.00011351,2]
[421608268,1777950644000,-500.0,0.00011351,2]
[421608269,1777950644000,-500.0,0.00011351,2]
[421608264,1777950644000,-317.81876904,0.00010758,2]
[421608267,1777950644000,-455.8809217,0.00010906,2]
[421608266,1777950644000,-151.0,0.00010906,2]
[421608263,1777950644000,-300.0,0.00010648,2]
[421608262,1777950644000,-568.0,0.00010543,2]
[421608260,1777950644000,-3678.29660978,0.00010438,2]
[421608261,1777950644000,-5000.0,0.00010543,2]
[421608259,1777950644000,-543.38155845,0.00010438,2]
[421608258,1777950644000,-388.39333647,0.00010438,2]
[421608296,1777950644000,-500.0,0.00011351,2]
[421608273,1777950644000,-500.0,0.00011351,2]
[421608284,1777950644000,-500.0,0.00011351,2]
[421608295,1777950644000,-500.0,0.00011351,2]
[421608312,1777950644000,-541.65,0.00011525,2]
[421608314,1777950644000,-585.97660249,0.00011525,2]
[421608313,1777950644000,-6634.0094616,0.00011525,2]
[421608310,1777950644000,-628.1247688,0.00011525,2]
[421608315,1777950644000,-7374.82932665,0.00011525,2]
[421608309,1777950644000,-424.17702131,0.00011525,2]
[421608311,1777950644000,-642.99355765,0.00011525,2]
[421608308,1777950644000,-9881.11499437,0.00011525,2]
[421608305,1777950644000,-500.0,0.00011351,2]
[421608301,1777950644000,-500.0,0.00011351,2]
[421608306,1777950644000,-548.53651922,0.00011351,2]
[421608303,1777950644000,-500.0,0.00011351,2]
[421608286,1777950644000,-485.35946121,0.00011351,2]
[421608300,1777950644000,-500.0,0.00011351,2]
[421608302,1777950644000,-500.0,0.00011351,2]
[421608292,1777950644000,-500.0,0.00011351,2]
[421608294,1777950644000,-500.0,0.00011351,2]
[421608291,1777950644000,-500.0,0.00011351,2]
[421608293,1777950644000,-350.42141243,0.00011351,2]
[421608289,1777950644000,-500.0,0.00011351,2]
[421608297,1777950644000,-500.0,0.00011351,2]
[421608290,1777950644000,-500.0,0.00011351,2]
[421608304,1777950644000,-231.27409398,0.00011351,2]
[421608288,1777950644000,-500.0,0.00011351,2]
[421608298,1777950644000,-500.0,0.00011351,2]
[421608299,1777950644000,-500.0,0.00011351,2]
[421608307,1777950644000,-49586.5726429,0.00011525,2]
[421608325,1777950647000,-9758.58130913,0.00011525,2]
[421608324,1777950647000,-45268.54686121,0.00011525,2]
[421608322,1777950647000,-12833.92034401,0.00011525,2]
[421608321,1777950647000,-636.54678336,0.00011525,2]
[421608323,1777950647000,-541.03249352,0.00011525,2]
[421608326,1777950801000,603.352,0.00019168,120]
[421608327,1777950814000,603.352,0.00019168,120]
[421608328,1777950822000,603.352,0.00019168,120]
[421608329,1777950830000,603.352,0.00019168,120]
[421608330,1777950840000,604.672,0.00019168,120]
[421608331,1777950848000,604.672,0.00019168,120]
[421608332,1777950865000,603.352,0.00019168,120]
[421608333,1777950896000,603.8946,0.00019168,120]
[421608334,1777950902000,603.352,0.00019168,120]
[421608336,1777950911000,603.352,0.00019168,120]
[421608337,1777950917000,603.352,0.00019168,120]
[421608338,1777950927000,604.672,0.00019168,120]
[421608341,1777951577000,151.0,0.00020822,120]
[421608342,1777951583000,151.0,0.00020822,120]
[421608343,1777951590000,151.0,0.00020822,120]
[421608344,1777951597000,151.0,0.00020822,120]
[421608345,1777951604000,151.0,0.00020822,120]
[421608346,1777951612000,151.0,0.00020822,120]
[421608347,1777951619000,151.0,0.00020822,120]
[421608348,1777951627000,150.5,0.00020822,120]
[421608349,1777951633000,151.0,0.00020822,120]
[421608350,1777951687000,151.0,0.00020822,120]
[421608436,1777951831000,-1060.79795721,9.321e-05,2]
[421608427,1777951831000,-3541.28686708,9.321e-05,2]
[421608438,1777951831000,-5000.0,9.415e-05,2]
[421608446,1777951831000,-151.0,0.00010905,2]
[421608448,1777951831000,-456.2076375,0.00010905,2]
[421608450,1777951831000,-316.50907713,0.00010905,2]
[421608440,1777951831000,-300.0,9.557e-05,2]
[421608429,1777951831000,-397.91517571,9.321e-05,2]
[421608442,1777951831000,-318.11737743,9.558e-05,2]
[421608444,1777951831000,-180.5429259,9.867e-05,2]
[421608455,1777951831000,-455.4568735,0.00010905,2]
[421608457,1777951831000,-151.9244844,0.00010905,2]
[421608459,1777951831000,-325.688714,0.00010905,2]
[421608461,1777951831000,-197.65873888,0.00010905,2]
[421608453,1777951831000,-139.73273147,0.00010905,2]
[421608465,1777951831000,-177.74922878,0.000112,2]
[421608463,1777951831000,-127.91901922,0.00010905,2]
[421608559,1777951838000,-5723.30432466,0.000112,2]
[421608560,1777951838000,-2365.23801308,0.000112,2]
[421608558,1777951838000,-2285.37917142,0.000112,2]
[421608561,1777951838000,-2777.82818292,0.000112,2]
[421608563,1777951838000,-6037.5383653,0.000112,2]
[421608564,1777951838000,-22681.09822168,0.00011218,7]
[421608565,1777951838000,-3191.72976468,0.00011218,7]
[421608566,1777951838000,-243825.44412633,0.00011218,7]
[421608562,1777951838000,-6303.54245342,0.000112,2]
[421608617,1777951852000,5295.81772407,7.6e-05,2]
[421608709,1777952926000,207.4,0.00020822,120]
[421608763,1777953033000,-329.47844437,8.768e-05,2]
[421608773,1777953033000,-260.96869793,8.857e-05,2]
[421608775,1777953033000,-1326.15606267,8.857e-05,2]
[421608765,1777953033000,-434.29307212,8.857e-05,2]
[421608771,1777953033000,-2581.36439249,8.857e-05,2]
[421608981,1777953038000,-500.0,0.0001102,2]
[421608999,1777953038000,-500.0,0.0001102,2]
[421609001,1777953038000,-221.81320056,0.0001102,2]
[421609004,1777953038000,-500.0,0.0001102,2]
[421609003,1777953038000,-500.0,0.0001102,2]
[421609012,1777953038000,-500.0,0.0001102,2]
[421609008,1777953038000,-500.0,0.0001102,2]
[421609014,1777953038000,-500.0,0.0001102,2]
[421609007,1777953038000,-500.0,0.0001102,2]
[421609023,1777953038000,-500.0,0.0001102,2]
[421609010,1777953038000,-500.0,0.0001102,2]
[421609018,1777953038000,-500.0,0.0001102,2]
[421609020,1777953038000,-500.0,0.0001102,2]
[421609016,1777953038000,-500.0,0.0001102,2]
[421609021,1777953038000,-500.0,0.0001102,2]
[421609025,1777953038000,-500.0,0.0001102,2]
[421608983,1777953038000,-500.0,0.0001102,2]
[421608997,1777953038000,-500.0,0.0001102,2]
[421608972,1777953038000,-359.70417454,0.0001102,2]
[421608995,1777953038000,-500.0,0.0001102,2]
[421609026,1777953038000,-500.0,0.0001102,2]
[421608946,1777953038000,-183.24462183,8.991e-05,2]
[421608944,1777953038000,-397.21777479,8.857e-05,2]
[421608966,1777953038000,-351.77849628,0.00010991,2]
[421608964,1777953038000,-325.6623219,0.00010896,2]
[421608968,1777953038000,-33.84096738,0.00010991,2]
[421608970,1777953038000,-500.0,0.0001102,2]
[421608985,1777953038000,-500.0,0.0001102,2]
[421608962,1777953038000,-143.55153382,8.991e-05,2]
[421608974,1777953038000,-500.0,0.0001102,2]
[421608988,1777953038000,-505.90715168,0.0001102,2]
[421608989,1777953038000,-500.0,0.0001102,2]
[421608978,1777953038000,-500.0,0.0001102,2]
[421608993,1777953038000,-326.9381056,0.0001102,2]
[421608979,1777953038000,-500.0,0.0001102,2]
[421608991,1777953038000,-500.0,0.0001102,2]
[421608975,1777953038000,-500.0,0.0001102,2]
[421609028,1777953038000,-500.0,0.0001102,2]
[421609059,1777953038000,-308.71123362,0.0001102,2]
[421609032,1777953038000,-500.0,0.0001102,2]
[421609078,1777953038000,-500.0,0.0001102,2]
[421609079,1777953038000,-500.0,0.0001102,2]
[421609082,1777953038000,-500.0,0.0001102,2]
[421609085,1777953038000,-500.0,0.0001102,2]
[421609087,1777953038000,-500.0,0.0001102,2]
[421609083,1777953038000,-157.61605676,0.0001102,2]
[421609088,1777953038000,-500.0,0.0001102,2]
[421609076,1777953038000,-500.0,0.0001102,2]
[421609099,1777953038000,-500.0,0.0001102,2]
[421609090,1777953038000,-500.0,0.0001102,2]
[421609098,1777953038000,-500.0,0.0001102,2]
[421609096,1777953038000,-500.0,0.0001102,2]
[421609091,1777953038000,-500.0,0.0001102,2]
[421609097,1777953038000,-500.0,0.0001102,2]
[421609093,1777953038000,-500.0,0.0001102,2]
[421609030,1777953038000,-500.0,0.0001102,2]
[421609095,1777953038000,-500.0,0.0001102,2]
[421609066,1777953038000,-500.0,0.0001102,2]
[421609074,1777953038000,-500.0,0.0001102,2]
[421609072,1777953038000,-500.0,0.0001102,2]
[421609036,1777953038000,-500.0,0.0001102,2]
[421609037,1777953038000,-500.0,0.0001102,2]
[421609039,1777953038000,-201.79249267,0.0001102,2]
[421609034,1777953038000,-500.0,0.0001102,2]
[421609045,1777953038000,-365.83508529,0.0001102,2]
[421609043,1777953038000,-500.0,0.0001102,2]
[421609068,1777953038000,-500.0,0.0001102,2]
[421609049,1777953038000,-134.16491471,0.0001102,2]
[421609051,1777953038000,-500.0,0.0001102,2]
[421609041,1777953038000,-500.0,0.0001102,2]
[421609057,1777953038000,-500.0,0.0001102,2]
[421609100,1777953038000,-445.5788387,0.0001102,2]
[421609053,1777953038000,-500.0,0.0001102,2]
[421609064,1777953038000,-500.0,0.0001102,2]
[421609063,1777953038000,-500.0,0.0001102,2]
[421609061,1777953038000,-500.0,0.0001102,2]
[421609070,1777953038000,-500.0,0.0001102,2]
[421609055,1777953038000,-500.0,0.0001102,2]
[421609106,1777953039000,-500.0,0.0001102,2]
[421609102,1777953039000,-500.0,0.0001102,2]
[421609103,1777953039000,-500.0,0.0001102,2]
[421609104,1777953039000,-500.0,0.0001102,2]
[421609105,1777953039000,-500.0,0.0001102,2]
[421609101,1777953039000,-500.0,0.0001102,2]
[421609111,1777953039000,-300.0,0.0001102,2]
[421609108,1777953039000,-300.0,0.0001102,2]
[421609113,1777953039000,-661371.15783472,0.00011021,2]
[421609110,1777953039000,-300.0,0.0001102,2]
[421609109,1777953039000,-300.0,0.0001102,2]
[421609112,1777953039000,-1200.0,0.0001102,2]
[421609107,1777953039000,-500.0,0.0001102,2]
[421609561,1777953043000,-2185.89669367,0.00011021,2]
[421609563,1777953043000,-659.7749991,0.00011021,2]
[421609756,1777953141000,275896.23522021,0.0002,120]
[421609758,1777953203000,1116.15650059,0.00017828,120]
[421609757,1777953203000,1116.15650059,0.00017799,120]
[421609760,1777953204000,1116.15650059,0.00017884,120]
[421609759,1777953204000,1116.15650059,0.00017856,120]
[421609761,1777953205000,1116.15650059,0.00017913,120]
[421609762,1777953308000,180.0,0.00019323,120]
[421609763,1777953310000,180.0,0.00020289,120]
[421609764,1777953605000,182.0,0.00019323,120]
[421609765,1777953607000,182.0,0.00020289,120]
[421609806,1777954232000,-304.81,8.73e-05,2]
[421610088,1777954238000,-500.0,0.0001082,2]
[421610087,1777954238000,-500.0,0.0001082,2]
[421610089,1777954238000,-500.0,0.0001082,2]
[421610086,1777954238000,-500.0,0.0001082,2]
[421610090,1777954238000,-500.0,0.0001082,2]
[421610099,1777954238000,-861073.9149589,0.00010821,2]
[421610098,1777954238000,-3058.42471029,0.00010821,2]
[421610097,1777954238000,-602.74828139,0.0001082,2]
[421610075,1777954238000,-1200.0,8.817e-05,2]
[421610079,1777954238000,-420.0,9.895e-05,2]
[421610081,1777954238000,-188.104,0.00010702,2]
[421610071,1777954238000,-3549.76180769,8.73e-05,2]
[421610084,1777954238000,-310.6231901,0.0001082,2]
[421610077,1777954238000,-300.0,8.995e-05,2]
[421610082,1777954238000,-410.63114954,0.00010774,2]
[421610073,1777954238000,-347.99249961,8.774e-05,2]
[421610085,1777954238000,-500.0,0.0001082,2]
[421610080,1777954238000,-443.473,0.00010702,2]
[421610094,1777954238000,-500.0,0.0001082,2]
[421610083,1777954238000,-201.43471339,0.00010819,2]
[421610091,1777954238000,-500.0,0.0001082,2]
[421610116,1777954238000,-151.0,0.00011021,2]
[421610092,1777954238000,-500.0,0.0001082,2]
[421610093,1777954238000,-500.0,0.0001082,2]
[421610118,1777954238000,-156.31634806,0.00011021,2]
[421610117,1777954238000,-151.0,0.00011021,2]
[421610115,1777954238000,-767.91759986,0.00011021,2]
[421610114,1777954238000,-1000.0,0.00011021,2]
[421610113,1777954238000,-1000.0,0.00011021,2]
[421610106,1777954238000,-1000.0,0.00011021,2]